fUSD/lending_fUSD_20260304
["ID","MTS","AMOUNT","RATE_DAILY","PERIOD"]
[407678026,1772665855889,-337.0,0.00019639,2]
[407678027,1772665855898,-150.0,0.00019726,2]
[407678028,1772665855907,-150.0,0.00019726,2]
[407678029,1772665855917,-250.0,0.00019726,2]
[407678030,1772665855927,-250.0,0.00019726,2]
[407678031,1772665855936,-246.1,0.0001976,2]
[407678032,1772665855946,-3950.0,0.0002,2]
[407678033,1772665855955,-1299.50928747,0.0002,2]
[407678034,1772665855965,-132596.41194006,0.0002,2]
[407678035,1772665855974,-1049.03587293,0.0002,2]
[407678036,1772665855984,-2874.64417136,0.0002,2]
[407678037,1772665855993,-12976.36933122,0.0002,2]
[407678038,1772665856003,-152.0,0.0002,2]
[407678039,1772665856013,-7934.15979287,0.0002,120]
[407678040,1772665856022,-5000.0,0.0002,2]
[407678041,1772665856032,-246.1,0.0002003,2]
[407678042,1772665856042,-150.0,0.00020274,2]
[407678043,1772665856053,-250.0,0.00020274,2]
[407678044,1772665856064,-350.0,0.00020274,2]
[407678045,1772665856074,-267.28948161,0.00020274,2]
[407678046,1772665856083,-246.1,0.000203,2]
[407678047,1772665856092,-6462.70728396,0.00020344,2]
[407678048,1772665856104,-246.1,0.0002057,2]
[407678049,1772665856115,-270.03135916,0.00020822,2]
[407678050,1772665856125,-350.0,0.00020822,2]
[407678051,1772665856135,-450.0,0.00020822,2]
[407678052,1772665856144,-246.1,0.0002084,2]
[407678053,1772665856155,-255.77,0.00020941,2]
[407678054,1772665856164,-1198.67146521,0.00021,2]
[407678055,1772665856174,-197.85069578,0.00021,2]
[407678056,1772665856185,-5000.0,0.00021,2]
[407678057,1772665856194,-150.0,0.00021,2]
[407678058,1772665856204,-246.1,0.0002111,2]
[407678059,1772665856213,-450.0,0.0002137,2]
[407678060,1772665856223,-550.0,0.0002137,2]
[407678061,1772665856233,-246.1,0.0002138,2]
[407678062,1772665856242,-152.92,0.00021471,2]
[407678063,1772665856252,-57821.67400744,0.000215,2]
[407678064,1772665856261,-223.21180429,0.000215,2]
[407678065,1772665856271,-3087.65,0.000215,2]
[407678066,1772665856281,-3087.65,0.000215,2]
[407678067,1772665856290,-3087.65,0.000215,2]
[407678068,1772665856300,-3087.65,0.000215,2]
[407678069,1772665856309,-4431.86,0.000215,2]
[407678070,1772665856319,-889.0,0.00021524,2]
[407678071,1772665856328,-250.0,0.00021548,2]
[407678072,1772665856338,-3363.96676683,0.00021571,2]
[407678073,1772665856348,-246.1,0.0002165,2]
[407678074,1772665856367,-14672.74,0.00021757,2]
[407678075,1772665856377,-205.12,0.00021917,2]
[407678076,1772665856388,-3048.4,0.00021918,2]
[407678077,1772665856398,-161.29529703,0.00021918,2]
[407678078,1772665856408,-650.0,0.00021918,2]
[407678079,1772665856418,-550.0,0.00021918,2]
[407678080,1772665856427,-246.1,0.0002192,2]
[407678081,1772665856437,-164.92,0.00022,2]
[407678082,1772665856447,-160.0,0.00022,2]
[407678083,1772665856457,-350.0,0.00022096,2]
[407678084,1772665856466,-496.96361432,0.000221,2]
[407678085,1772665856476,-246.1,0.0002219,2]
[407678086,1772665856486,-246.1,0.0002246,2]
[407678087,1772665856495,-650.0,0.00022466,2]
[407678088,1772665856505,-750.0,0.00022466,2]
[407678089,1772665856514,-3623.79266468,0.000226,2]
[407678090,1772665856524,-450.0,0.00022644,2]
[407678091,1772665856533,-525.95471474,0.0002271,2]
[407678092,1772665856544,-246.1,0.0002273,2]
[407678093,1772665856554,-6462.70728396,0.00022789,2]
[407678094,1772665856565,-204.45795491,0.0002299,2]
[407678095,1772665856574,-495.46537312,0.00022999,2]
[407678096,1772665856584,-500.0,0.00022999,2]
[407678097,1772665856594,-165.45038884,0.00022999,2]
[407678098,1772665856605,-500.0,0.00022999,2]
[407678099,1772665856616,-282.31591295,0.00022999,2]
[407678100,1772665856626,-305312.37580217,0.00023,2]
[407678101,1772665856636,-216.86763205,0.00023,2]
[407678102,1772665856646,-160.0,0.00023,2]
[407678103,1772665856655,-5000.0,0.00023,2]
[407678104,1772665856665,-246.3,0.00023,2]
[407678105,1772665856674,-2129.12173615,0.00023,2]
[407678106,1772665856684,-750.0,0.00023014,2]
[407678107,1772665856693,-850.0,0.00023014,2]
[407678108,1772665856703,-550.0,0.00023192,2]
[407678109,1772665856712,-780.6360101,0.000232,2]
[407678110,1772665856723,-388.85,0.00023207,2]
[407678111,1772665856733,-1500.0,0.00023288,2]
[407678112,1772665856743,-200.0,0.000235,2]
[407678113,1772665856752,-565.88141402,0.00023562,2]
[407678114,1772665856762,-950.0,0.00023562,2]
[407678115,1772665856771,-650.0,0.0002374,2]
[407678116,1772665856781,-10450.44729943,0.00024,14]
[407678117,1772665856791,-3600.0,0.00024,2]
[407678118,1772665856801,-1241.86175673,0.00024,2]
[407678119,1772665856811,-5000.0,0.00024,2]
[407678120,1772665856820,-1050.0,0.0002411,2]
[407678121,1772665856831,-1767.17,0.00024174,2]
[407678122,1772665856840,-9999.99,0.00024174,2]
[407678123,1772665856850,-424.27002086,0.0002421,2]
[407678124,1772665856859,-3717.26570434,0.0002421,2]
[407678125,1772665856869,-750.0,0.00024288,2]
[407678126,1772665856879,-440.79690695,0.00024471,2]
[407678127,1772665856889,-168.82068363,0.0002465,2]
[407678128,1772665856899,-1009.06355604,0.00024658,2]
[407678129,1772665856909,-150.0,0.00024658,2]
[407678130,1772665856919,-200.94114036,0.00024836,2]
[407678131,1772665856928,-540.0,0.00025,2]
[407678132,1772665856940,-612.91956571,0.00025,2]
[407678133,1772665856950,-3054.52418372,0.00025,2]
[407678134,1772665856961,-7151.28406202,0.00025,2]
[407678135,1772665856971,-167.8746308,0.00025,2]
[407678136,1772665856981,-1798.38637562,0.00025,2]
[407678137,1772665856992,-5000.0,0.00025,2]
[407678138,1772665857003,-6462.70728396,0.00025233,2]
[407678139,1772665857013,-49710.88495646,0.0002539,2]
[407678140,1772665857022,-500.0,0.00025869,2]
[407678141,1772665857031,-150.0,0.0002589,2]
[407678142,1772665857043,-602.98308863,0.0002599,2]
[407678143,1772665857055,-217.23681352,0.00026,2]
[407678144,1772665857065,-5000.0,0.00026,2]
[407678145,1772665857075,-1000.0,0.0002601,7]
[407678146,1772665857084,-5837.0,0.00026183,2]
[407678147,1772665857094,-434.37976563,0.000263,2]
[407678148,1772665857104,-250.0,0.00027,2]
[407678149,1772665857116,-1038.34041624,0.00027,2]
[407678150,1772665857126,-530.0,0.00027,2]
[407678151,1772665857135,-5000.0,0.00027,2]
[407678152,1772665857145,-255.77,0.00027,2]
[407678153,1772665857157,-2574.79,0.00027011,2]
[407678154,1772665857166,-1174.52,0.00027075,2]
[407678155,1772665857176,-286.18005047,0.00027085,2]
[407678156,1772665857188,-150.0,0.00027185,2]
[407678157,1772665857196,-1000.0,0.00027239,2]
[407678158,1772665857206,-8153.53228805,0.0002739,2]
[407678159,1772665857215,-529.98180814,0.00027397,2]
[407678160,1772665857224,-2194.79,0.000274,7]
[407678161,1772665857233,-7493.31,0.000274,7]
[407678162,1772665857243,-551.97655684,0.000275,2]
[407678163,1772665857252,-6462.70728396,0.00027677,2]
[407678164,1772665857261,-51074.66609065,0.00028,2]
[407678165,1772665857270,-1116.852207,0.00028,60]
[407678166,1772665857280,-160.0,0.00028,2]
[407678167,1772665857293,-5000.0,0.00028,2]
[407678168,1772665857302,-150.0,0.00028544,2]
[407678169,1772665857313,-2458.0,0.00028855,2]
[407678170,1772665857322,-5987.0,0.00028855,2]
[407678171,1772665857332,-921.0,0.00028855,2]
[407678172,1772665857341,-217.0,0.0002886,2]
[407678173,1772665857350,-504.52141437,0.00029,2]
[407678174,1772665857360,-217.0,0.00029132,2]
[407678175,1772665857369,-217.0,0.00029324,7]
[407678176,1772665857378,-150.0,0.00029346,7]
[407678177,1772665857387,-184.899268,0.00029349,7]
[407678178,1772665857397,-3501.0,0.00029412,2]
[407678179,1772665857407,-1341.0,0.00029412,2]
[407678180,1772665857416,-1000.0,0.0002948,20]
[407678181,1772665857425,-168.0,0.00029605,2]
[407678182,1772665857435,-199.07364582,0.00029634,2]
[407678183,1772665857444,-2985.07829366,0.00029634,2]
[407678184,1772665857455,-217.0,0.00029782,2]
[407678185,1772665857464,-338.5432,0.0002979,2]
[407678186,1772665857474,-3288.64628154,0.000298,2]
[407678187,1772665857484,-172.00105691,0.000298,2]
[407678188,1772665857496,-32898.3261,0.000298,2]
[407678189,1772665857506,-1000.0,0.00029882,2]
[407678190,1772665857516,-174.61919141,0.00029882,2]
[407678191,1772665857525,-151.0,0.00029882,2]
[407678192,1772665857536,-151.0,0.00029882,2]
[407678193,1772665857547,-151.0,0.00029882,2]
[407678194,1772665857557,-151.0,0.00029882,2]
[407678195,1772665857567,-151.0,0.00029882,2]
[407678196,1772665857579,-151.0,0.00029882,2]
[407678197,1772665857590,-151.0,0.00029882,2]
[407678198,1772665857602,-151.0,0.00029882,2]
[407678199,1772665857612,-151.0,0.00029882,2]
[407678200,1772665857621,-151.0,0.00029882,2]
[407678201,1772665857631,-151.0,0.00029882,2]
[407678202,1772665857640,-693.3919763,0.00029882,2]
[407678203,1772665857650,-259.9306671,0.00029882,2]
[407678204,1772665857660,-500.0,0.00029889,120]
[407678205,1772665857670,-500.0,0.00029889,2]
[407678206,1772665857680,-1336.91403435,0.00029899,15]
[407678207,1772665857690,-617.94,0.00029899,120]
[407678208,1772665857699,-500.0,0.00029899,2]
[407678209,1772665857709,-410.84,0.00029899,2]
[407678210,1772665857719,-3000.0,0.00029899,2]
[407678211,1772665857729,-79278.58735229,0.000299,2]
[407678212,1772665857739,-19859.91209041,0.000299,2]
[407678213,1772665857748,-823.6711431,0.000299,2]
[407678214,1772665857758,-719.04747942,0.00029937,2]
[407678215,1772665857767,-150.0,0.00029971,2]
[407678216,1772665857777,-238.42361219,0.0002999,2]
[407678217,1772665857787,-745.65223616,0.00029992,2]
[407678218,1772665857796,-18542.17392008,0.0003,2]
[407678219,1772665857806,-9500.0,0.0003,3]
[407678220,1772665857816,-19968.42220179,0.0003,2]
[407678221,1772665857827,-961.53158474,0.0003,2]
[407678222,1772665857836,-2000.0,0.0003,3]
[407678223,1772665857845,-320.92079584,0.0003,2]
[407678224,1772665857855,-1826.91129478,0.0003,2]
[407678225,1772665857864,-163.86169672,0.0003,2]
[407678226,1772665857874,-255.77,0.0003,2]
[407678227,1772665857883,-773.2413689,0.00030047,2]
[407678228,1772665857893,-801.85129955,0.00030102,2]
[407678229,1772665857902,-6462.70728396,0.00030122,2]
[407678230,1772665857911,-1079.21341372,0.0003013,2]
[407678231,1772665857921,-13923.09033411,0.0003013,2]
[407678232,1772665857931,-637.33321671,0.0003013,2]
[407678233,1772665857940,-202.75157828,0.0003013,2]
[407678234,1772665857949,-7771.33905342,0.0003013,2]
[407678235,1772665857959,-831.51979763,0.00030157,2]
[407678236,1772665857968,-15616.13331583,0.000302,2]
[407678237,1772665857977,-862.28603014,0.00030212,2]
[407678238,1772665857986,-1000.0,0.00030219,2]
[407678239,1772665857995,-271.0,0.00030229,7]
[407678240,1772665858005,-270.0,0.00030245,2]
[407678241,1772665858014,-894.19061326,0.00030267,2]
[407678242,1772665858023,-7493.31,0.000303,7]
[407678243,1772665858032,-765.46,0.00030319,120]
[407678244,1772665858040,-927.27566595,0.00030322,2]
[407678245,1772665858215,-765.46,0.00030329,120]
[407678246,1772665858225,-765.46,0.00030329,120]
[407678247,1772665858234,-765.46,0.00030329,120]
[407678248,1772665858244,-765.46,0.00030329,120]
[407678249,1772665858253,-765.46,0.00030329,120]
[407678250,1772665858262,-765.46,0.00030329,120]
[407678251,1772665858271,-765.46,0.00030329,120]
[407678252,1772665858280,-765.46,0.00030329,120]
[407678253,1772665858290,-765.46,0.00030329,120]
[407678254,1772665858299,-765.46,0.00030329,120]
[407678255,1772665858308,-961.58486559,0.00030377,2]
[407678256,1772665858318,-150.0,0.000304,14]
[407678257,1772665858327,-151.14980792,0.00030418,2]
[407678258,1772665858336,-1000.0,0.0003043,2]
[407678259,1772665858345,-181.08010149,0.0003043,2]
[407678260,1772665858354,-997.16350561,0.00030432,2]
[407678261,1772665858363,-842.54764661,0.00030448,2]
[407678262,1772665858373,-2023.0,0.00030476,3]
[407678263,1772665858382,-172.65896273,0.00030476,3]
[407678264,1772665858391,-2194.79,0.000305,7]
[407678265,1772665858401,-765.46,0.00030581,120]
[407678266,1772665858410,-271.0,0.00030609,2]
[407678267,1772665858420,-270.0,0.00030613,2]
[407678268,1772665858430,-201.42874694,0.00030749,2]
[407678269,1772665858439,-161.0,0.00030752,3]
[407678270,1772665858449,-270.0,0.00030838,2]
[407678271,1772665858459,-1617.20371429,0.0003084,2]
[407678272,1772665858468,-270.0,0.00030934,2]
[407678273,1772665858477,-1000.0,0.00030978,2]
[407678274,1772665858486,-187.78006525,0.00030978,2]
[407678275,1772665858496,-270.0,0.00030979,2]
[407678276,1772665858506,-270.0,0.00030986,2]
[407678277,1772665858515,-150.0,0.00030999,20]
[407678278,1772665858524,-3000.0,0.00031,20]
[407678279,1772665858533,-3587.0,0.00031,20]
[407678280,1772665858543,-3000.0,0.00031,20]
[407678281,1772665858553,-3000.0,0.00031,20]
[407678282,1772665858563,-1000.0,0.00031,2]
[407678283,1772665858572,-51828.71975544,0.00031,2]
[407678284,1772665858584,-2802.0,0.00031056,3]
[407678285,1772665858596,-270.0,0.00031196,2]
[407678286,1772665858606,-217.0,0.00031217,7]
[407678287,1772665858621,-172.65896273,0.00031217,7]
[407678288,1772665858640,-270.0,0.00031219,7]
[407678289,1772665858650,-168.0,0.00031239,2]
[407678290,1772665858670,-2826.0,0.00031352,3]
[407678291,1772665858685,-270.0,0.00031455,2]
[407678292,1772665858695,-150.0,0.0003147,2]
[407678293,1772665858704,-150.0,0.000315,2]
[407678294,1772665858713,-756.32814481,0.00031522,10]
[407678295,1772665858722,-1000.0,0.00031526,2]
[407678296,1772665858732,-194.72792766,0.00031526,2]
[407678297,1772665858742,-947.0,0.00031542,2]
[407678298,1772665858751,-997.60551893,0.000316,2]
[407678299,1772665858761,-150.0,0.000317,2]
[407678300,1772665858770,-10533.24874965,0.000317,2]
[407678301,1772665858779,-150.0,0.000317,2]
[407678302,1772665858789,-799.37727606,0.000317,2]
[407678303,1772665858802,-7493.31,0.000317,7]
[407678304,1772665858811,-168.0,0.0003174,2]
[407678305,1772665858821,-168.0,0.00031749,2]
[407678306,1772665858831,-151.0,0.00031847,7]
[407678307,1772665858840,-128050.0,0.0003185,20]
[407678308,1772665858850,-2458.0,0.00031855,2]
[407678309,1772665858859,-5987.0,0.00031855,2]
[407678310,1772665858869,-921.0,0.00031855,2]
[407678311,1772665858879,-270.0,0.00031884,7]
[407678312,1772665858890,-315.06,0.000319,14]
[407678313,1772665858901,-2802.0,0.00031992,3]
[407678314,1772665858910,-160.0,0.00032008,3]
[407678315,1772665858919,-2194.79,0.000321,7]
[407678316,1772665858928,-217.0,0.00032146,2]
[407678317,1772665858938,-2802.0,0.0003216,3]
[407678318,1772665858947,-898.93503383,0.000323,2]
[407678319,1772665858956,-3288.64628152,0.00032314,2]
[407678320,1772665858965,-383.85176155,0.00032314,2]
[407678321,1772665858975,-204.06,0.00032402,10]
[407678322,1772665858984,-1341.0,0.00032412,2]
[407678323,1772665858994,-769.153,0.00032412,2]
[407678324,1772665859003,-3495.89486,0.000325,15]
[407678325,1772665859013,-1000.0,0.000325,2]
[407678326,1772665859022,-765.46,0.00032519,120]
[407678327,1772665859032,-6462.70728396,0.00032566,2]
[407678328,1772665859041,-452.49,0.00032654,2]
[407678329,1772665859050,-452.49,0.00032654,2]
[407678330,1772665859059,-1000.0,0.0003277,2]
[407678331,1772665859069,-4856.6062548,0.000328,2]
[407678332,1772665859079,-346.57,0.00032877,2]
[407678333,1772665859088,-500.0,0.00032877,2]
[407678334,1772665859097,-500.0,0.00032877,2]
[407678335,1772665859107,-500.0,0.00032877,2]
[407678336,1772665859121,-500.0,0.00032877,2]
[407678337,1772665859132,-500.0,0.00032877,2]
[407678338,1772665859143,-500.0,0.00032877,2]
[407678339,1772665859153,-377.57124791,0.00032877,2]
[407678340,1772665859162,-2008.2951225,0.00032899,2]
[407678341,1772665859172,-128050.0,0.000329,20]
[407678342,1772665859182,-168.0,0.00032989,2]
[407678343,1772665859192,-16281.49182012,0.00033,13]
[407678344,1772665859202,-33516.25634928,0.00033,13]
[407678345,1772665859211,-12931.59904463,0.00033,13]
[407678346,1772665859222,-3000.0,0.00033,22]
[407678347,1772665859232,-51577.00577386,0.00033,2]
[407678348,1772665859244,-26521.97413112,0.00033,2]
[407678349,1772665859253,-154.41493938,0.00033,2]
[407678350,1772665859264,-150.0,0.00033043,2]
[407678351,1772665859275,-823.67114308,0.0003321,2]
[407678352,1772665859285,-217.0,0.00033364,2]
[407678353,1772665859296,-7493.31,0.000334,14]
[407678354,1772665859306,-1218.08626099,0.000335,2]
[407678355,1772665859315,-170.52,0.000335,2]
[407678356,1772665859325,-765.46,0.00033699,120]
[407678357,1772665859334,-2194.79,0.000337,14]
[407678358,1772665859344,-128050.0,0.0003395,20]
[407678359,1772665859353,-170.52,0.00034,2]
[407678360,1772665859363,-150.0,0.0003408,2]
[407678361,1772665859373,-177.59951743,0.0003408,2]
[407678362,1772665859383,-452.50735946,0.00034287,2]
[407678363,1772665859393,-452.49,0.00034287,2]
[407678364,1772665859403,-1000.0,0.00034431,2]
[407678365,1772665859412,-152.0,0.00034464,30]
[407678366,1772665859421,-1740.93509521,0.0003449,2]
[407678367,1772665859430,-170.5149174,0.000345,2]
[407678368,1772665859440,-605.0,0.00034542,2]
[407678369,1772665859449,-150.0,0.00034542,2]
[407678370,1772665859458,-150.0,0.00034542,2]
[407678371,1772665859467,-150.0,0.00034542,2]
[407678372,1772665859476,-150.0,0.00034542,2]
[407678373,1772665859487,-150.0,0.00034542,2]
[407678374,1772665859498,-231.0,0.00034542,2]
[407678375,1772665859508,-4195.21,0.000346,2]
[407678376,1772665859517,-150.0,0.00034696,2]
[407678377,1772665859528,-588.0,0.00034823,2]
[407678378,1772665859538,-150.0,0.00034823,2]
[407678379,1772665859547,-150.0,0.00034823,2]
[407678380,1772665859561,-150.0,0.00034823,2]
[407678381,1772665859570,-150.0,0.00034823,2]
[407678382,1772665859580,-150.0,0.00034823,2]
[407678383,1772665859589,-150.0,0.00034823,2]
[407678384,1772665859599,-150.0,0.00034823,2]
[407678385,1772665859609,-269.0,0.00034823,2]
[407678386,1772665859619,-3288.64628152,0.00034829,2]
[407678387,1772665859629,-2458.0,0.00034855,2]
[407678388,1772665859639,-5987.0,0.00034855,2]
[407678389,1772665859648,-921.0,0.00034855,2]
[407678390,1772665859658,-553.0,0.000349,12]
[407678391,1772665859667,-20753.77,0.00034903,2]
[407678392,1772665859676,-765.46,0.00034999,120]
[407678393,1772665859686,-162.2,0.00035,10]
[407678394,1772665859696,-3000.0,0.00035,25]
[407678395,1772665859705,-128050.0,0.00035,20]
[407678396,1772665859714,-1928.05670295,0.00035,2]
[407678397,1772665859723,-804.24468716,0.00035,2]
[407678398,1772665859733,-200.3064923,0.00035,3]
[407678399,1772665859742,-6462.70728396,0.0003501,2]
[407678400,1772665859751,-151.0,0.0003504,30]
[407678401,1772665859761,-585.0,0.00035405,2]
[407678402,1772665859770,-150.0,0.00035405,2]
[407678403,1772665859780,-150.0,0.00035405,2]
[407678404,1772665859791,-150.0,0.00035405,2]
[407678405,1772665859800,-150.0,0.00035405,2]
[407678406,1772665859810,-150.0,0.00035405,2]
[407678407,1772665859819,-150.0,0.00035405,2]
[407678408,1772665859828,-150.0,0.00035405,2]
[407678409,1772665859839,-259.0,0.00035405,2]
[407678410,1772665859849,-161.83974908,0.0003551,2]
[407678411,1772665859859,-2153.5418529,0.0003551,2]
[407678412,1772665859869,-50041.75380103,0.0003561,2]
[407678413,1772665859878,-168793.13447314,0.0003561,2]
[407678414,1772665859888,-4456.37205067,0.0003561,2]
[407678415,1772665859898,-5000.0,0.0003561,2]
[407678416,1772665859907,-1603.05119358,0.00035616,7]
[407678417,1772665859916,-1603.05119358,0.00035616,7]
[407678418,1772665859925,-1603.05119358,0.00035616,7]
[407678419,1772665859934,-1603.05119358,0.00035616,7]
[407678420,1772665859944,-1603.05119358,0.00035616,7]
[407678421,1772665859954,-1603.05119358,0.00035616,7]
[407678422,1772665859963,-1603.05119358,0.00035616,7]
[407678423,1772665859972,-1603.05119358,0.00035616,7]
[407678424,1772665859981,-1603.05119358,0.00035616,7]
[407678425,1772665859991,-1603.05119358,0.00035616,7]
[407678426,1772665860000,-1603.05119358,0.00035616,7]
[407678427,1772665860009,-1603.05119358,0.00035616,7]
[407678428,1772665860018,-1603.05119358,0.00035616,7]
[407678429,1772665860027,-1603.05119358,0.00035616,7]
[407678430,1772665860037,-1603.05119358,0.00035616,7]
[407678431,1772665860046,-1603.05119358,0.00035616,7]
[407678432,1772665860056,-1603.05119358,0.00035616,7]
[407678433,1772665860066,-1763.35631293,0.00035616,7]
[407678434,1772665860075,-1763.35631293,0.00035616,7]
[407678435,1772665860085,-1763.35631293,0.00035616,7]
[407678436,1772665860095,-1763.35631293,0.00035616,7]
[407678437,1772665860104,-1763.35631293,0.00035616,7]
[407678438,1772665860120,-1763.35631293,0.00035616,7]
[407678439,1772665860131,-1763.35631293,0.00035616,7]
[407678440,1772665860141,-1763.35631293,0.00035616,7]
[407678441,1772665860151,-173.00423347,0.00035616,2]
[407678442,1772665860162,-698.35,0.00035632,2]
[407678443,1772665860171,-608.95,0.00035906,2]
[407678444,1772665860181,-4195.21,0.00036,2]
[407678445,1772665860192,-1000.0,0.00036,7]
[407678446,1772665860202,-155894.06117643,0.00036,2]
[407678447,1772665860211,-724.9085841,0.00036,2]
[407678448,1772665860220,-235932.37530489,0.00036,2]
[407678449,1772665860229,-151.0,0.00036,7]
[407678450,1772665860239,-151.0,0.00036,7]
[407678451,1772665860248,-509.75229,0.00036,7]
[407678452,1772665860257,-509.75229,0.00036,7]
[407678453,1772665860268,-509.75229,0.00036,7]
[407678454,1772665860279,-509.75229,0.00036,7]
[407678455,1772665860288,-1123.556729,0.00036,7]
[407678456,1772665860298,-1123.556729,0.00036,7]
[407678457,1772665860310,-1123.556729,0.00036,7]
[407678458,1772665860320,-1123.556729,0.00036,7]
[407678459,1772665860331,-3643.487575,0.00036,7]
[407678460,1772665860340,-3643.487575,0.00036,7]
[407678461,1772665860350,-3643.487575,0.00036,7]
[407678462,1772665860359,-3643.487575,0.00036,7]
[407678463,1772665860370,-151.0,0.00036,7]
[407678464,1772665860379,-151.0,0.00036,7]
[407678465,1772665860391,-151.0,0.00036,7]
[407678466,1772665860401,-289.167472,0.00036,7]
[407678467,1772665860411,-151.0,0.00036,7]
[407678468,1772665860420,-151.0,0.00036,7]
[407678469,1772665860430,-151.0,0.00036,7]
[407678470,1772665860440,-151.0,0.00036,7]
[407678471,1772665860450,-765.46,0.00036049,120]
[407678472,1772665860460,-128050.0,0.0003605,20]
[407678473,1772665860471,-367.36551663,0.000362,2]
[407678474,1772665860481,-1000.0,0.00036411,2]
[407678475,1772665860491,-150.0,0.0003643,2]
[407678476,1772665860501,-1000.0,0.000365,2]
[407678477,1772665860511,-1000.0,0.000365,2]
[407678478,1772665860523,-1000.0,0.000365,2]
[407678479,1772665860533,-1000.0,0.000365,2]
[407678480,1772665860543,-1000.0,0.000365,2]
[407678481,1772665860553,-172.00105691,0.000365,2]
[407678482,1772665860564,-823.67114308,0.0003652,2]
[407678483,1772665860574,-1000.0,0.00036549,2]
[407678484,1772665860585,-1000.0,0.00036549,2]
[407678485,1772665860596,-1000.0,0.00036549,2]
[407678486,1772665860605,-1000.0,0.00036549,2]
[407678487,1772665860615,-1000.0,0.00036549,2]
[407678488,1772665860624,-286.18005047,0.00036767,2]
[407678489,1772665860634,-1619.78229803,0.000368,2]
[407678490,1772665860644,-262.55,0.000369,30]
[407678491,1772665860654,-14209.17593702,0.0003691,2]
[407678492,1772665860663,-365.0,0.00037,2]
[407678493,1772665860672,-364.31902344,0.00037,3]
[407678494,1772665860682,-166.63585096,0.00037,2]
[407678495,1772665860691,-150.0,0.00037026,11]
[407678496,1772665860700,-213.99946381,0.00037026,11]
[407678497,1772665860710,-128050.0,0.000371,20]
[407678498,1772665860720,-218.39967828,0.00037125,2]
[407678499,1772665860730,-195.0,0.00037281,30]
[407678500,1772665860739,-3288.64628152,0.00037343,2]
[407678501,1772665860748,-606.66577302,0.00037366,11]
[407678502,1772665860758,-271.0,0.0003739,7]
[407678503,1772665860767,-6462.70728396,0.00037455,2]
[407678504,1772665860776,-4358.092448,0.0003759,2]
[407678505,1772665860902,-152.0,0.00037641,3]
[407678506,1772665860912,-150.0,0.00037695,7]
[407678507,1772665860921,-202.0,0.00037695,7]
[407678508,1772665860931,-447.96066021,0.00037753,120]
[407678509,1772665860940,-2458.0,0.00037855,2]
[407678510,1772665860950,-5987.0,0.00037855,2]
[407678511,1772665860959,-921.0,0.00037855,2]
[407678512,1772665860968,-203.32679475,0.0003788,2]
[407678513,1772665860977,-4195.21,0.000379,2]
[407678514,1772665860987,-570.24857554,0.00038005,7]
[407678515,1772665860996,-311.08,0.00038034,30]
[407678516,1772665861007,-765.46,0.00038149,120]
[407678517,1772665861017,-128050.0,0.0003815,20]
[407678518,1772665861026,-150.0,0.00038252,2]
[407678519,1772665861036,-150.0,0.00038325,7]
[407678520,1772665861045,-200.0,0.00038325,7]
[407678521,1772665861055,-160.0,0.000388,2]
[407678522,1772665861064,-10000.71316525,0.00038834,2]
[407678523,1772665861074,-1174.52,0.00038856,2]
[407678524,1772665861083,-1018.14663802,0.00038904,5]
[407678525,1772665861093,-30943.23436268,0.00039,2]